Cogmind - Beta 10.2 @@@ ROGUE MODE // 2021.09.27 @ 07:35:09 Player: tokkot Result: Destroyed by D-53 Grenadier with Mini Grenade Launcher Performance ------------- Evolutions (1) 500 Regions Visited (3) 600 Robots Destroyed (24) 120 Value Destroyed (573) 573 Prototype IDs (2) 40 Alien Tech Used (0) 0 Bonus (-20) -20 TOTAL SCORE: 1813 Bonus ------- Friendly Fire -20 Cogmind --------- Core Integrity 0/400 Matter 92/400 Energy 95/100 System Corruption 0% Temperature Cool (4) Movement Core (100) Ox1 Location -9/Mines Parts ------- > --- POWER (1) -------- (None) > --- PROPULSION (3) --- (None) > --- UTILITY (2) ------ Medium Matter Pod Visual Processing Unit > --- WEAPON (3) ------- Rocket Launcher > --- INVENTORY (4) ---- Visual Processing Unit Peak State ------------ > --- POWER ------------ Light Ion Engine > --- PROPULSION ------- Carbon-fiber Leg Carbon-fiber Leg Carbon-fiber Leg > --- UTILITY ---------- Medium Matter Pod Visual Processing Unit > --- WEAPON ----------- Small Laser Assault Rifle Light Assault Rifle > --- INVENTORY -------- Light Ion Engine Aluminum Leg Aluminum Leg Medium Matter Pod [Rating: 16] Favorites ----------- Power Light Ion Engine Engine Light Ion Engine Propulsion Carbon-fiber Leg Leg Carbon-fiber Leg Utility Medium Matter Pod Storage Medium Matter Pod Processor Visual Processing Unit Weapon Assault Rifle Energy Gun Small Laser Energy Cannon Beam Cannon Ballistic Gun Assault Rifle Launcher Rocket Launcher Build | -11 -10 -9 -9 ------- Run | Scr Mat Mat Min Slots Evolved 2 | . . 2 . Power . | . . . . Propulsion 1 | . . 1 . Utility . | . . . . Weapon 1 | . . 1 . Parts Attached 19 | 5 4 10 . Power 2 | 1 . 1 . Engine 2 | 1 . 1 . Core . | . . . . Reactor . | . . . . Propulsion 8 | 2 1 5 . Treads . | . . . . Leg 8 | 2 1 5 . Wheel . | . . . . Hover . | . . . . Flight . | . . . . Utility 3 | . 3 . . Device . | . . . . Storage 2 | . 2 . . Processor 1 | . 1 . . Hackware . | . . . . Protection . | . . . . Artifact . | . . . . Weapon 6 | 2 . 4 . Energy Gun 2 | . . 2 . Energy Cannon 1 | . . 1 . Ballistic Gun 2 | 2 . . . Ballistic Cannon . | . . . . Launcher 1 | . . 1 . Special Weapon . | . . . . Impact Weapon . | . . . . Slashing Weapon . | . . . . Piercing Weapon . | . . . . Special Melee Weapon . | . . . . Unidentified Prototypes . | . . . . Parts Lost 11 | . . 10 1 Power 2 | . . 2 . Propulsion 4 | . . 4 . Utility . | . . . . Weapon 5 | . . 4 1 Highest Loss Streak 7 | . . 7 1 Average Slot Usage (%) 85 | . 92 82 44 Engine 9 | . 14 7 . Leg 25 | . 26 25 . Storage 11 | . 13 11 11 Processor 10 | . 9 11 11 Energy Gun 5 | . . 9 11 Ballistic Gun 19 | . 28 15 . Launcher 1 | . . 1 11 Naked Turns . | . . . . Heaviest Build 11 | 6 10 11 9 Greatest Support 45 | 20 20 45 3 Greatest Overweight (x) 2 | . . 2 2 Average Overweight (x) . | . . . 2 Largest Inventory Capacity 4 | 4 4 4 4 Average Capacity 4 | 4 4 4 4 Most Carried 4 | . 4 4 1 Average Carried 2 | . 2 2 1 Final Capacity 4 | 4 4 4 4 Final Carried 4 | . 4 1 1 Class Distribution -------------------- 66% | Mutant 33% | Skirmisher Dominant Class ---------------- Mutant | -10/Materials Skirmisher | -9/Materials Mutant | -9/Mines Resources | -11 -10 -9 -9 ----------- Run | Scr Mat Mat Min Matter Collected 455 | 241 194 20 . Remotely . | . . . . Salvage Created 652 | 43 263 346 . Parts 56 | 1 25 30 . Haulers Intercepted . | . . . . Recyclers Shooed . | . . . . Parts Field Recycled . | . . . . Retrieved Matter . | . . . . Parts Self-Destructed . | . . . . Prevented . | . . . . Kills | -11 -10 -9 -9 ------- Run | Scr Mat Mat Min Combat Hostiles Destroyed 19 | 1 5 13 . Guns 14 | 1 5 8 . AOE 5 | . . 5 . Classes Destroyed 6 | 1 2 3 . Worker 1 | . 1 . . Watcher 4 | . 2 2 . Swarmer 8 | . . 8 . Grunt 8 | 1 5 2 . Brawler 1 | . . 1 . Sentry 2 | . . 2 . Best Kill Streak 5 | 1 3 5 . Combat Bots Only 5 | 1 3 5 . Max Kills in Single Turn 2 | 1 1 2 . Gunslinging . | . . . . Exploded 2 | . . 2 . Melee . | . . . . Uniques/NPCs Destroyed . | . . . . Combat | -11 -10 -9 -9 -------- Run | Scr Mat Mat Min Damage Taken 1446 | 22 199 1120 105 Core 451 | . 45 333 73 Absorbed by Shields . | . . . . Core Remaining (%) 91 | 100 82 . . Volleys Fired 70 | 4 31 34 1 Largest 3 | 2 2 3 2 Hottest 120 | 40 40 120 98 Shots Fired 158 | 8 62 86 2 Gun 147 | 8 62 76 1 Cannon 3 | . . 3 . Launcher 8 | . . 7 1 Special . | . . . . Kinetic 119 | 8 62 49 . Thermal 31 | . . 30 1 Explosive 8 | . . 7 1 Electromagnetic . | . . . . Robot Hit Streak 6 | 6 6 5 2 Robot Miss Streak 5 | 2 5 5 . Penetration Max . | . . . . Secondary Targets 1 | . . 1 . Max Gunslinging Chain 1 | . . 1 . Shots Hit Robots 78 | 6 34 36 2 Core Hits 39 | 2 13 20 4 Critical Hits . | . . . . Critical Kills . | . . . . Critical Parts Destroyed . | . . . . Melee Attacks . | . . . . Impact . | . . . . Slashing . | . . . . Piercing . | . . . . Sneak Attacks . | . . . . Combat Hostiles . | . . . . Follow-up Attacks . | . . . . Damage Inflicted 1244 | 59 349 777 59 Guns 794 | 59 349 371 15 Cannons 36 | . . 36 . Explosions 408 | . . 364 44 Melee . | . . . . Ramming 6 | . . 6 . Kinetic 591 | 59 349 183 . Thermal 239 | . . 224 15 Explosive 408 | . . 364 44 Electromagnetic . | . . . . Impact . | . . . . Slashing . | . . . . Piercing . | . . . . Highest Corruption . | . . . . Average Corruption . | . . . . Corruption Purged . | . . . . Overload Shots . | . . . . Overflow Damage 1 | . . . 1 Projectiles . | . . . . Explosions 1 | . . . 1 Melee . | . . . . Knockbacks . | . . . . Impact . | . . . . Kinetic . | . . . . Secondary . | . . . . Self-Inflicted Damage 60 | . . 32 28 Shots 3 | . . 2 1 Rammed . | . . . . Targets Rammed 1 | . . 1 . Kicked 1 | . . 1 . Crushed . | . . . . Highest Temperature 81 | 6 12 81 4 Average Temperature 24 | 6 6 28 4 Received Heat Transfer 243 | 12 108 123 . Siege Activations . | . . . . Robots Corrupted . | . . . . Combat Hostiles . | . . . . Parts Fried . | . . . . Impact Corruptions . | . . . . Robots Melted . | . . . . Combat Hostiles . | . . . . Parts Melted . | . . . . Heat Transferred 535 | . . 498 37 Parts Sabotaged . | . . . . Parts Stolen . | . . . . Parts Stripped . | . . . . Power Chain Reactions . | . . . . Missiles Intercepted . | . . . . Alert | -11 -10 -9 -9 ------- Run | Scr Mat Mat Min Peak Influence 266 | 20 112 266 91 Initial 91 | . 13 42 91 Average 108 | 2 43 166 90 Maximum Alert Level 1 | . . 1 . Low Security (%) 79 | 100 100 62 100 Level 1 20 | . . 37 . Level 2 . | . . . . Level 3 . | . . . . Level 4 . | . . . . Level 5 . | . . . . High Security . | . . . . Max Security . | . . . . Squads Dispatched 2 | . 2 . . Investigation 2 | . 2 . . Extermination . | . . . . Reinforcement . | . . . . Assault . | . . . . Garrison . | . . . . Intercept . | . . . . Construction Impeded . | . . . . Haulers Reinforced . | . . . . Stealth | -11 -10 -9 -9 --------- Run | Scr Mat Mat Min Distress Signals 4 | . . 4 . Communications Jammed . | . . . . Distress Signals . | . . . . Times Spotted 37 | 1 11 23 2 Peak Tracking Total 10 | 1 3 10 2 Tactical Retreats 4 | . . 4 . Traps | -11 -10 -9 -9 ------- Run | Scr Mat Mat Min Traps Triggered 1 | . 1 . . Indirectly . | . . . . Trap Hack Attempts . | . . . . Triggered . | . . . . Disarmed . | . . . . Reprogrammed . | . . . . Reused . | . . . . Traps Extracted . | . . . . Installed . | . . . . Triggered . | . . . . Machines | -11 -10 -9 -9 ---------- Run | Scr Mat Mat Min Machines Disabled 4 | . 2 2 . Max in Single Turn 1 | . 1 1 . Machines Sabotaged . | . . . . Garrisons Compromised . | . . . . Overloaded Fab Kills . | . . . . Fab Network Shutdowns . | . . . . Hacking | -11 -10 -9 -9 --------- Run | Scr Mat Mat Min Machines Accessed 4 | . 2 2 . Terminals 2 | . 1 1 . Fabricators . | . . . . Repair Stations 1 | . 1 . . Recycling Units . | . . . . Scanalyzers 1 | . . 1 . Garrison Access . | . . . . Total Hacks 9 | . 5 4 . Successful 8 | . 4 4 . Failed 1 | . 1 . . Catastrophic . | . . . . Database Lockouts . | . . . . Manual . | . . . . Terminals 4 | . 2 2 . Fabricators . | . . . . Repair Stations 3 | . 3 . . Recycling Units . | . . . . Scanalyzers 2 | . . 2 . Garrison Access . | . . . . Terminal Hacks 4 | . 2 2 . Prototype ID Bank 1 | . 1 . . Unreport Threat 1 | . 1 . . Hauler Manifests 1 | . . 1 . Zone Layout 1 | . . 1 . Fabricator Hacks . | . . . . Repair Station Hacks 2 | . 2 . . Scan Component 1 | . 1 . . Repair 1 | . 1 . . Recycling Unit Hacks . | . . . . Scanalyzer 2 | . . 2 . Insert Component 1 | . . 1 . Analyze 1 | . . 1 . Garrison Access Hacks . | . . . . Unauthorized Hacks . | . . . . Terminals . | . . . . Fabricators . | . . . . Repair Stations . | . . . . Recycling Units . | . . . . Scanalyzers . | . . . . Garrison Access . | . . . . Data Cores Recovered . | . . . . Used . | . . . . Hacking Detections 2 | . 1 1 . Full Trace Events 1 | . 1 . . Feedback Events . | . . . . Feedback Blocked . | . . . . Robot Schematics Acquired . | . . . . Robots Built . | . . . . Matter . | . . . . Time . | . . . . Total Robot Build Rating . | . . . . Part Schematics Acquired 1 | . . 1 . Parts Built . | . . . . Matter . | . . . . Time . | . . . . Total Part Build Rating . | . . . . Parts Repaired 1 | . 1 . . Time 26 | . 26 . . Parts Recycled . | . . . . Recycled Matter . | . . . . Retrieved Matter . | . . . . Retrieved Components . | . . . . Parts Scanalyzed 1 | . . 1 . Part Schematics Acquired 1 | . . 1 . Parts Damaged . | . . . . Bothacking | -11 -10 -9 -9 ------------ Run | Scr Mat Mat Min Used RIF Installer . | . . . . Robots Hacked . | . . . . Non-combat . | . . . . Combat . | . . . . Robot Hacks Applied . | . . . . Relay Couplers Released . | . . . . Robots Rewired . | . . . . Allies Hacked . | . . . . Hacks Repelled . | . . . . Allies | -11 -10 -9 -9 -------- Run | Scr Mat Mat Min Total Allies . | . . . . Largest Group . | . . . . Highest-Rated Group . | . . . . Highest-Rated Ally . | . . . . Total Orders . | . . . . Ally Attacks . | . . . . Total Damage . | . . . . Kills . | . . . . Allies Corrupted . | . . . . Allies Melted . | . . . . Intel | -11 -10 -9 -9 ------- Run | Scr Mat Mat Min Robot Analysis Total . | . . . . Derelict Logs Recovered . | . . . . Drone Launches . | . . . . Drone Recoveries . | . . . . Exploration | -11 -10 -9 -9 ------------- Run | Scr Mat Mat Min Turns Passed 901 | 86 307 495 13 Spaces Moved 550 | 68 171 303 8 Core 62 | 19 . 35 8 Treads . | . . . . Legs 488 | 49 171 268 . Wheels . | . . . . Hover . | . . . . Flight . | . . . . Fastest Speed 50 | 50 120 100 150 Average Speed 119 | 100 120 123 150 Slowest Speed 150 | 120 120 150 150 Overloaded Moves . | . . . . Propulsion Burnouts . | . . . . Robots Hopped . | . . . . Cave-ins Triggered . | . . . . Exploration Rate (%) 20 | 6 42 32 3 Regions Visited 3 Branch Regions 1 Pre-discovered Areas . | . . . . Known Exits Taken . | . . . . Unknown Exits Taken 3 | 1 1 1 . Scrap Searched . | . . . . Spaces Dug . | . . . . Terrain Destroyed 86 | . . 72 14 Melee . | . . . . Projectile . | . . . . AOE 86 | . . 72 14 Terrain Rammed . | . . . . Walls Destroyed . | . . . . Machines Disabled . | . . . . Actions | -11 -10 -9 -9 --------- Run | Scr Mat Mat Min Total 661 | 76 215 361 9 Wait 11 | . 6 5 . Move 547 | 67 170 302 8 Hop . | . . . . Pick Up 7 | . 4 3 . Fast Attach 12 | 5 3 4 . Attach 5 | . . 5 . Detach 2 | . . 2 . Swap 2 | . 1 1 . Drop 4 | . . 4 . Fire 70 | 4 31 34 1 Melee . | . . . . Ram . | . . . . Kick 1 | . . 1 . Crush . | . . . . Escape Stasis . | . . . . Rewire . | . . . . Trap . | . . . . Miscellaneous . | . . . . Route ------- -11/Scrapyard -10/Materials (discovered 3 exits: *Mat x2 / [*Min]) -9/Materials -9/Mines History --------- Turn | Location | Event 2 | -11/Scrapyard | Met Revision 17 62 | -11/Scrapyard | Discovered new exit (range 8) 87 | -11/Scrapyard | Entered Materials 115 | -10/Materials | Discovered new exit (range 13) 204 | -10/Materials | Discovered new exit (range 18) 261 | -10/Materials | Discovered new exit (range 15) 312 | -10/Materials | Build established: Mutant 347 | -10/Materials | Repaired Aluminum Leg 394 | -10/Materials | Entered another Materials area 394 | -9/Materials | Evolved 2 slots: Propulsion x1, Weapon x1 797 | -9/Materials | Core integrity fell below 50% 799 | -9/Materials | Lost 7 parts (1p3n3w) 824 | -9/Materials | Core integrity fell below 20% 846 | -9/Materials | Discovered new exit (range 7) 889 | -9/Materials | Entered Mines 890 | -9/Mines | Assembled infested the area 895 | -9/Mines | Assisted by a Guerilla fighting off Assembled 902 | -9/Mines | Destroyed by D-53 Grenadier with Mini Grenade Launcher Last Messages --------------- Acquired Particle Gun. K-01 Serf collects debris. S-10 Pest destroyed. K-01 Serf collects debris. Y-45 Defender destroyed. K-01 Serf collects debris. The unstable cave ceiling collapses. K-01 Serf collects debris. EXIT=FOUND Acquired 10 matter. LOCATION=UNKNOWN GOAL=ESCAPE ALERT: Infestation in the mines, dispatching Demolisher response squad. A derelict emerges from the shadows: "You need to get out of here! I've been tracking a group of Assembled to figure out where they're coming from, and they're closing on this area, come on!" C-30 ARC bursts open, deploying its payload. D-53 Grenadier unfolds itself. Particle Gun destroyed. Destroyed Particle Gun. Map ----- +----------------------------------------------------+ | ????????????????????????????????? | | ????????????????????????????????? | | ????????????????????????????????? | | ????????????????????????????????? | | ????????????????????????????????? | | ????????????????????????????????? | | ????????????????????????????????? | | ????????????????????????????????? | | ????????????????????????????????? | | ????????????????????????????????? | | ????????????????????????????????? | | ????????????????????????????????? | | ????????????????????????????????? | | ????????????????????????????????? | | ????????????????????????????????? | | ????????????????????????????????? | | ????????????????????????????????? | | ????????????????????????????????? | | ????????????????????????????????? | | ????????????????????????????????? | | ????????????????????????????????? | | ????????????????????????#####???? | | ??????????????????????### ####? | | ?????????????????????## # | | ????????????????# # d # | | ????????????????# h@ d #? | | ????????????????# ### # | | ????????????????????# # # | | ????????????????????# ###? # | | ????????????????????#####????? ## | | ???????????????????????????????#? | | ????????????????????????????????? | | ????????????????????????????????? | | ????????????????????????????????? | | ????????????????????????????????? | | ????????????????????????????????? | | ????????????????????????????????? | | ????????????????????????????????? | | ????????????????????????????????? | | ????????????????????????????????? | | ????????????????????????????????? | | ????????????????????????????????? | | ????????????????????????????????? | | ????????????????????????????????? | | ????????????????????????????????? | | ????????????????????????????????? | | ????????????????????????????????? | | ????????????????????????????????? | | ????????????????????????????????? | | ????????????????????????????????? | +----------------------------------------------------+ Best States ------------- Heat Dissipation 28 Energy Generation 10 Energy Capacity 125 Matter Stores 305 Matter Capacity 500 Sight Range 18 Terrain Scan Density 10 Evasion (%) 50 Item Schematics ----------------- Visual Processing Unit | -9/Materials | Scanalyzed Robot Schematics ------------------ None Fabricated ------------ Nothing Alien Tech Used ----------------- None Achievements -------------- Everything Is Under Control One Hack Too Far Part-time Mechanic Shopping List Challenges ------------ None Game ------ Seed SurveybotVortexChip Manual? 0 Play Time 00:27:27 Cumulative 1.9 hours Start 2021.09.27 @ 07:07:11 End 2021.09.27 @ 07:35:09 Sessions 1 Manual Loads 0 Difficulty Rogue Special Mode None Game No. 2 Rogue 2 Adventurer 0 Explorer 0 Win Type - Total 0 Types 0/0/0/0/0/0/0/0/0 Lore% 0 Gallery% 2 Achievement% 3 Wizard Run 0 Options --------- ASCII 1 Keyboard 1 Movement Vi Keybinds 0 Fullscreen 1 Font 18/SmallcapsGlow Map View 76x50 Tactical HUD 0 Map Filters NONE Filters NONE Steam 1 RUN: f320c5e2-3aba-4090-b256-2edd27f8cf05